fUST/lending_fUST_20260101
["ID","MTS","AMOUNT","RATE_DAILY","PERIOD"]
[400216981,1767201045320,-193.78459303,0.000329,120]
[400216982,1767201045329,-162.37843672,0.000329,120]
[400216983,1767201045339,-183.49170094,0.000329,120]
[400216984,1767201045348,-1430.86618739,0.000329,120]
[400216985,1767201045358,-183.42010434,0.000329,120]
[400216986,1767201045367,-146480.1687316,0.00033,20]
[400216987,1767201045376,-1041.66666667,0.00033,120]
[400216988,1767201045386,-152.611704,0.00033,31]
[400216989,1767201045395,-1016.0,0.00033,7]
[400216990,1767201045405,-1041.66666667,0.00033,10]
[400216991,1767201045415,-956.2,0.0003315,34]
[400216992,1767201045424,-1136.183039,0.00033165,2]
[400216993,1767201045433,-179.95097548,0.000332,117]
[400216994,1767201045442,-2863.2521,0.0003322,30]
[400216995,1767201045451,-553.64373807,0.00033261,2]
[400216996,1767201045461,-1038.33,0.000333,30]
[400216997,1767201045470,-150.0,0.00033335,2]
[400216998,1767201045478,-1004.98248976,0.00033425,5]
[400216999,1767201045488,-160.0,0.00033429,11]
[400217000,1767201045497,-726.0,0.00033545,11]
[400217001,1767201045507,-156.46,0.000336,7]
[400217002,1767201045516,-1010.82313009,0.00033634,120]
[400217003,1767201045525,-627.0,0.00033655,2]
[400217004,1767201045535,-2156.0,0.00033655,2]
[400217005,1767201045544,-1364.0,0.00033655,2]
[400217007,1767201045554,-416.0,0.00033655,2]
[400217008,1767201045564,-416.0,0.00033655,2]
[400217009,1767201045574,-151.0,0.00033677,6]
[400217010,1767201045591,-956.2,0.00033698,35]
[400217011,1767201045612,-250.0,0.00033699,5]
[400217012,1767201045632,-200.26076,0.000337,120]
[400217013,1767201045642,-150.0,0.00033711,30]
[400217014,1767201045652,-200.54705607,0.00033774,28]
[400217015,1767201045662,-295.735,0.000338,20]
[400217016,1767201045673,-295.73,0.000338,20]
[400217017,1767201045683,-574.12855637,0.00033809,2]
[400217018,1767201045693,-162.37843672,0.000339,120]
[400217019,1767201045706,-183.49170094,0.000339,120]
[400217020,1767201045717,-1430.86618739,0.000339,120]
[400217021,1767201045728,-160.0,0.00034091,12]
[400217022,1767201045738,-2000.0,0.00034129,7]
[400217023,1767201045749,-956.2,0.00034246,36]
[400217025,1767201045759,-595.37131296,0.00034357,2]
[400217027,1767201045769,-726.0,0.0003441,11]
[400217029,1767201045778,-350.0,0.00034521,5]
[400217031,1767201045787,-1478.85,0.00034617,60]
[400217033,1767201045796,-151.19,0.00034651,60]
[400217035,1767201045806,-1478.85,0.00034717,60]
[400217036,1767201045815,-726.0,0.0003473,11]
[400217038,1767201045824,-151.19,0.00034751,60]
[400217040,1767201045834,-160.0,0.00034754,13]
[400217042,1767201045844,-956.2,0.00034794,37]
[400217044,1767201045853,-1478.85,0.00034817,60]
[400217046,1767201045863,-151.19,0.00034851,60]
[400217048,1767201045872,-200.54705607,0.00034864,30]
[400217050,1767201045882,-1430.86618739,0.000349,120]
[400217052,1767201045891,-617.40005154,0.00034905,2]
[400217054,1767201045901,-1478.85,0.00034917,60]
[400217056,1767201045911,-151.19,0.00034951,60]
[400217058,1767201045920,-1010.2,0.00035,21]
[400217060,1767201045930,-1478.85,0.00035017,60]
[400217061,1767201045939,-151.21868735,0.00035051,60]
[400217063,1767201045948,-1478.85,0.00035117,60]
[400217065,1767201045957,-169.32246815,0.00035151,30]
[400217067,1767201045966,-9686.67,0.000352,14]
[400217069,1767201045976,-151.0,0.000352,31]
[400217071,1767201045985,-195.753576,0.000352,31]
[400217073,1767201045994,-151.0,0.000352,31]
[400217075,1767201046004,-151.0,0.000352,31]
[400217077,1767201046013,-831.019766,0.000352,31]
[400217079,1767201046023,-151.0,0.000352,31]
[400217081,1767201046032,-831.019766,0.000352,31]
[400217083,1767201046042,-151.0,0.000352,31]
[400217085,1767201046052,-831.019766,0.000352,31]
[400217087,1767201046062,-831.019766,0.000352,31]
[400217089,1767201046072,-151.0,0.000352,31]
[400217090,1767201046081,-151.0,0.000352,31]
[400217092,1767201046091,-239.000196,0.000352,31]
[400217094,1767201046102,-151.0,0.000352,31]
[400217096,1767201046111,-151.0,0.000352,31]
[400217098,1767201046122,-151.0,0.000352,31]
[400217099,1767201046133,-151.0,0.000352,28]
[400217100,1767201046142,-230.54366,0.000352,31]
[400217101,1767201046152,-230.54366,0.000352,31]
[400217102,1767201046162,-230.54366,0.000352,31]
[400217103,1767201046171,-230.54366,0.000352,31]
[400217104,1767201046181,-151.0,0.000352,31]
[400217105,1767201046191,-151.0,0.000352,31]
[400217106,1767201046202,-1478.85,0.00035217,60]
[400217107,1767201046214,-5000.0,0.00035287,3]
[400217108,1767201046225,-2000.0,0.00035303,7]
[400217109,1767201046236,-1478.85,0.00035317,60]
[400217110,1767201046247,-956.2,0.00035342,38]
[400217111,1767201046256,-450.0,0.00035342,5]
[400217112,1767201046267,-160.0,0.00035416,14]
[400217113,1767201046277,-1478.85,0.00035417,60]
[400217114,1767201046287,-640.24385345,0.00035453,2]
[400217115,1767201046300,-367.96456977,0.00035475,15]
[400217116,1767201046310,-726.0,0.00035477,11]
[400217117,1767201046327,-726.0,0.00035482,11]
[400217118,1767201046348,-169.32246815,0.00035507,30]
[400217119,1767201046362,-1478.85,0.00035517,60]
[400217120,1767201046374,-151.0,0.0003554,30]
[400217121,1767201046385,-255.96944075,0.00035563,60]
[400217122,1767201046398,-726.0,0.00035575,11]
[400217123,1767201046407,-1038.33,0.000356,30]
[400217124,1767201046417,-1478.85,0.00035617,60]
[400217125,1767201046427,-1071.87956076,0.00035634,120]
[400217126,1767201046437,-726.0,0.0003569,11]
[400217127,1767201046446,-156.46,0.000357,7]
[400217128,1767201046456,-151.0,0.000357,31]
[400217129,1767201046466,-151.0,0.000357,31]
[400217130,1767201046475,-151.0,0.000357,31]
[400217131,1767201046485,-195.765928,0.000357,31]
[400217132,1767201046494,-151.0,0.000357,31]
[400217133,1767201046504,-151.0,0.000357,31]
[400217134,1767201046515,-776.0,0.000357,2]
[400217135,1767201046524,-200.0,0.00035715,120]
[400217136,1767201046534,-1478.85,0.00035717,60]
[400217137,1767201046543,-500.0,0.00035796,14]
[400217138,1767201046554,-1478.85,0.00035817,60]
[400217139,1767201046564,-200.0,0.00035853,120]
[400217140,1767201046574,-956.2,0.0003589,39]
[400217141,1767201046583,-169.32246815,0.0003589,30]
[400217142,1767201046593,-166.0,0.0003589,30]
[400217143,1767201046603,-5000.0,0.00035899,15]
[400217144,1767201046613,-1430.86618739,0.000359,120]
[400217145,1767201046623,-600.0,0.00035906,2]
[400217146,1767201046633,-5000.0,0.00035914,15]
[400217147,1767201046643,-1478.85,0.00035917,60]
[400217148,1767201046653,-400.99411215,0.00035954,30]
[400217149,1767201046662,-726.0,0.00035982,11]
[400217150,1767201046672,-166.0,0.00036,30]
[400217151,1767201046682,-166.0,0.00036,30]
[400217152,1767201046692,-663.93287602,0.00036001,2]
[400217153,1767201046702,-1753.30515401,0.00036002,2]
[400217154,1767201046711,-1478.85,0.00036017,60]
[400217155,1767201046720,-874.0,0.00036024,11]
[400217156,1767201046734,-160.0,0.00036078,15]
[400217157,1767201046744,-1753.30515401,0.00036102,2]
[400217158,1767201046753,-1478.85,0.00036117,60]
[400217159,1767201046763,-651.10848757,0.00036164,5]
[400217160,1767201046773,-1753.30515401,0.00036202,2]
[400217161,1767201046783,-1478.85,0.00036217,60]
[400217162,1767201046792,-202.21692804,0.00036257,8]
[400217163,1767201046802,-202.21692799,0.00036257,8]
[400217164,1767201046811,-202.21692799,0.00036257,8]
[400217165,1767201046822,-202.21692799,0.00036257,8]
[400217166,1767201046832,-202.21692799,0.00036257,8]
[400217167,1767201046843,-202.21692799,0.00036257,8]
[400217168,1767201046853,-202.21692799,0.00036257,8]
[400217169,1767201046863,-202.21692799,0.00036257,8]
[400217170,1767201046873,-202.21692799,0.00036257,8]
[400217171,1767201046882,-202.21692799,0.00036257,8]
[400217172,1767201046892,-202.21692799,0.00036257,8]
[400217173,1767201046901,-202.21692799,0.00036257,8]
[400217174,1767201046911,-202.21692799,0.00036257,8]
[400217175,1767201046921,-726.0,0.00036258,11]
[400217176,1767201046931,-169.32246815,0.00036274,30]
[400217177,1767201046942,-600.0,0.0003628,2]
[400217178,1767201046951,-6369.13269035,0.0003628,2]
[400217179,1767201046961,-5000.0,0.00036289,8]
[400217180,1767201046971,-5000.0,0.00036299,14]
[400217181,1767201046982,-1500.625286,0.000363,24]
[400217182,1767201046992,-726.0,0.00036302,11]
[400217183,1767201047001,-1753.30515401,0.00036302,2]
[400217184,1767201047011,-1478.85,0.00036317,60]
[400217185,1767201047022,-5000.0,0.00036355,10]
[400217186,1767201047032,-200.0,0.00036387,120]
[400217187,1767201047041,-1753.30515401,0.00036402,2]
[400217188,1767201047049,-5000.0,0.0003641,15]
[400217189,1767201047058,-1478.85,0.00036417,60]
[400217190,1767201047068,-956.2,0.00036438,40]
[400217191,1767201047078,-500.0,0.0003644,30]
[400217192,1767201047087,-500.0,0.0003644,30]
[400217193,1767201047096,-500.0,0.0003644,30]
[400217194,1767201047106,-500.0,0.0003644,30]
[400217195,1767201047116,-500.0,0.0003644,30]
[400217196,1767201047126,-500.0,0.0003644,30]
[400217198,1767201047135,-500.0,0.0003644,30]
[400217199,1767201047145,-500.0,0.0003644,30]
[400217200,1767201047155,-200.0,0.00036457,120]
[400217201,1767201047165,-2000.0,0.00036478,7]
[400217202,1767201047175,-5000.0,0.00036499,15]
[400217203,1767201047184,-1753.30515401,0.00036502,2]
[400217204,1767201047194,-1478.85,0.00036517,60]
[400217205,1767201047203,-160.0,0.00036537,11]
[400217206,1767201047213,-688.49839244,0.00036549,2]
[400217207,1767201047223,-1753.30515401,0.00036602,2]
[400217208,1767201047235,-1478.85,0.00036617,60]
[400217209,1767201047245,-169.32246815,0.0003663,30]
[400217210,1767201047255,-726.0,0.0003665,11]
[400217211,1767201047265,-600.0,0.00036654,2]
[400217212,1767201047276,-627.0,0.00036655,2]
[400217213,1767201047286,-2156.0,0.00036655,2]
[400217214,1767201047295,-1364.0,0.00036655,2]
[400217215,1767201047306,-416.0,0.00036655,2]
[400217216,1767201047316,-416.0,0.00036655,2]
[400217217,1767201047326,-5000.0,0.00036689,15]
[400217218,1767201047336,-5000.0,0.00036689,15]
[400217219,1767201047345,-5000.0,0.00036693,59]
[400217220,1767201047355,-5000.0,0.00036693,58]
[400217221,1767201047365,-5000.0,0.00036693,55]
[400217222,1767201047374,-1753.30515401,0.00036702,2]
[400217223,1767201047383,-1478.85,0.00036717,60]
[400217224,1767201047393,-7073.29,0.00036717,5]
[400217225,1767201047404,-160.0,0.00036741,16]
[400217226,1767201047421,-5000.0,0.00036757,15]
[400217227,1767201047441,-150.0,0.00036775,30]
[400217228,1767201047459,-1500.0,0.000368,24]
[400217229,1767201047468,-1753.30515401,0.00036802,2]
[400217230,1767201047478,-1478.85,0.00036817,60]
[400217231,1767201047488,-5000.0,0.00036833,13]
[400217232,1767201047497,-380491.85,0.00036856,5]
[400217233,1767201047505,-200.0,0.00036891,120]
[400217234,1767201047513,-726.0,0.00036914,11]
[400217235,1767201047522,-1478.85,0.00036917,60]
[400217236,1767201047532,-726.0,0.00036928,11]
[400217237,1767201047542,-200.0,0.00036959,120]
[400217238,1767201047551,-1945.0118368,0.00036979,2]
[400217239,1767201047560,-199.4883935,0.00036979,2]
[400217240,1767201047570,-39992.1612348,0.00036979,2]
[400217241,1767201047580,-3042.1271948,0.00036979,2]
[400217242,1767201047589,-5000.0,0.00036985,15]
[400217243,1767201047599,-956.2,0.00036986,41]
[400217244,1767201047609,-5000.0,0.00036999,5]
[400217245,1767201047619,-14586.0,0.00037,10]
[400217246,1767201047629,-1430.86618739,0.00037,120]
[400217247,1767201047638,-169.32246815,0.00037014,30]
[400217248,1767201047648,-1478.85,0.00037017,60]
[400217249,1767201047658,-600.0,0.00037028,2]
[400217250,1767201047668,-2500.0,0.0003703,30]
[400217251,1767201047678,-7502.46707623,0.0003703,120]
[400217252,1767201047687,-93527.4,0.00037057,17]
[400217253,1767201047696,-800.0,0.00037063,7]
[400217254,1767201047706,-5000.0,0.0003709,15]
[400217255,1767201047716,-713.97283296,0.00037097,2]
[400217256,1767201047725,-1478.85,0.00037117,60]
[400217257,1767201047735,-800.0,0.00037143,7]
[400217258,1767201047744,-152.24102269,0.00037143,7]
[400217259,1767201047754,-800.0,0.00037147,7]
[400217260,1767201047763,-800.0,0.00037148,7]
[400217261,1767201047773,-151.0,0.00037156,31]
[400217262,1767201047783,-151.0,0.00037156,7]
[400217263,1767201047792,-151.0,0.00037156,31]
[400217264,1767201047802,-151.0,0.00037156,31]
[400217265,1767201047811,-151.0,0.00037156,31]
[400217266,1767201047821,-176.629156,0.00037156,31]
[400217267,1767201047831,-151.0,0.00037156,31]
[400217268,1767201047841,-151.0,0.00037156,31]
[400217269,1767201047850,-151.0,0.00037156,31]
[400217270,1767201047860,-151.0,0.00037156,31]
[400217271,1767201047869,-151.0,0.00037156,31]
[400217272,1767201047879,-151.0,0.00037156,31]
[400217273,1767201047888,-212.349887,0.00037156,31]
[400217274,1767201047898,-151.0,0.00037156,31]
[400217275,1767201047908,-212.349887,0.00037156,31]
[400217276,1767201047917,-151.0,0.00037156,31]
[400217277,1767201047927,-212.349887,0.00037156,31]
[400217278,1767201047937,-151.0,0.00037156,31]
[400217279,1767201047947,-212.349887,0.00037156,31]
[400217280,1767201047956,-151.0,0.00037156,31]
[400217281,1767201047967,-151.0,0.00037156,31]
[400217282,1767201047977,-151.0,0.00037156,31]
[400217283,1767201047986,-151.0,0.00037156,31]
[400217284,1767201047996,-151.0,0.00037156,31]
[400217285,1767201048005,-151.0,0.00037156,31]
[400217286,1767201048015,-151.0,0.00037156,31]
[400217287,1767201048025,-151.0,0.00037156,31]
[400217288,1767201048035,-151.0,0.00037156,31]
[400217289,1767201048045,-151.0,0.00037156,31]
[400217290,1767201048055,-175.816508,0.00037156,31]
[400217291,1767201048065,-151.0,0.00037156,31]
[400217292,1767201048076,-151.0,0.00037156,31]
[400217293,1767201048086,-151.0,0.00037156,31]
[400217294,1767201048096,-151.0,0.00037156,31]
[400217295,1767201048106,-151.0,0.00037156,31]
[400217296,1767201048116,-151.0,0.00037156,31]
[400217297,1767201048126,-287.705272,0.00037156,31]
[400217298,1767201048135,-151.0,0.00037156,31]
[400217299,1767201048145,-293375.93175396,0.00037157,7]
[400217300,1767201048155,-151.0,0.00037172,31]
[400217301,1767201048164,-151.0,0.00037172,31]
[400217302,1767201048174,-151.0,0.00037172,31]
[400217303,1767201048184,-151.0,0.00037172,31]
[400217304,1767201048193,-160.429789,0.00037172,31]
[400217305,1767201048203,-5000.0,0.0003719,15]
[400217306,1767201048212,-800.0,0.00037197,7]
[400217307,1767201048226,-9686.67,0.000372,14]
[400217308,1767201048235,-1478.85,0.00037217,60]
[400217309,1767201048245,-5000.0,0.00037251,15]
[400217310,1767201048255,-179.95097547,0.00037256,120]
[400217311,1767201048266,-10000.0,0.00037272,2]
[400217312,1767201048276,-5000.0,0.00037274,7]
[400217313,1767201048285,-1053.225924,0.0003728,11]
[400217314,1767201048295,-5000.0,0.0003729,9]
[400217315,1767201048305,-5000.0,0.00037299,2]
[400217316,1767201048418,-5000.0,0.00037299,15]
[400217317,1767201048428,-5000.0,0.00037299,11]
[400217318,1767201048438,-5000.0,0.00037299,15]
[400217319,1767201048449,-150.0,0.000373,11]
[400217320,1767201048458,-1000.0,0.000373,11]
[400217321,1767201048468,-150.0,0.000373,108]
[400217322,1767201048478,-5000.0,0.000373,15]
[400217323,1767201048488,-1500.0,0.000373,24]
[400217324,1767201048498,-1478.85,0.00037317,60]
[400217325,1767201048508,-151.0,0.00037319,31]
[400217326,1767201048518,-151.0,0.00037319,31]
[400217327,1767201048527,-151.0,0.00037319,31]
[400217328,1767201048537,-151.0,0.00037319,31]
[400217329,1767201048547,-221.765393,0.00037319,31]
[400217330,1767201048556,-151.0,0.00037319,31]
[400217331,1767201048566,-151.0,0.00037319,31]
[400217332,1767201048575,-243.584716,0.00037319,31]
[400217333,1767201048584,-293.040044,0.00037319,31]
[400217334,1767201048593,-151.0,0.00037319,31]
[400217335,1767201048603,-1275.46647218,0.00037337,31]
[400217336,1767201048613,-250.0,0.00037337,31]
[400217337,1767201048623,-461.67526834,0.00037337,31]
[400217338,1767201048633,-500.0,0.00037337,31]
[400217339,1767201048642,-218.990268,0.00037356,7]
[400217340,1767201048652,-170.594651,0.00037356,31]
[400217341,1767201048662,-151.0,0.00037356,31]
[400217342,1767201048672,-151.0,0.00037356,31]
[400217343,1767201048681,-151.0,0.00037356,31]
[400217344,1767201048691,-151.0,0.00037356,31]
[400217345,1767201048700,-151.0,0.00037356,31]
[400217346,1767201048710,-151.0,0.00037356,31]
[400217347,1767201048719,-151.0,0.00037356,31]
[400217348,1767201048729,-151.0,0.00037356,31]
[400217349,1767201048738,-169.691213,0.00037356,31]
[400217350,1767201048748,-151.0,0.00037356,31]
[400217351,1767201048758,-151.0,0.00037356,31]
[400217352,1767201048767,-228.788112,0.00037356,31]
[400217353,1767201048777,-151.0,0.00037356,31]
[400217354,1767201048786,-203.84118,0.00037356,31]
[400217355,1767201048796,-212.349887,0.00037356,31]
[400217356,1767201048805,-151.0,0.00037356,31]
[400217357,1767201048815,-212.349887,0.00037356,31]
[400217358,1767201048824,-151.0,0.00037356,31]
[400217359,1767201048833,-212.349887,0.00037356,31]
[400217360,1767201048843,-151.0,0.00037356,31]
[400217361,1767201048852,-212.349887,0.00037356,31]
[400217362,1767201048862,-151.0,0.00037356,31]
[400217363,1767201048871,-212.349887,0.00037356,31]
[400217364,1767201048880,-151.0,0.00037356,31]
[400217365,1767201048890,-212.349887,0.00037356,31]
[400217366,1767201048899,-151.0,0.00037356,31]
[400217367,1767201048909,-212.349887,0.00037356,31]
[400217368,1767201048918,-151.0,0.00037356,31]
[400217369,1767201048928,-212.349887,0.00037356,31]
[400217370,1767201048938,-151.0,0.00037356,31]
[400217371,1767201048947,-212.349887,0.00037356,31]
[400217372,1767201048956,-203.863584,0.00037356,31]
[400217373,1767201048966,-212.349887,0.00037356,31]
[400217374,1767201048975,-212.349887,0.00037356,31]
[400217375,1767201048985,-212.349895,0.00037356,31]
[400217376,1767201048995,-151.0,0.00037356,31]
[400217377,1767201049005,-151.0,0.00037356,31]
[400217378,1767201049014,-151.0,0.00037356,31]
[400217379,1767201049024,-151.0,0.00037356,31]
[400217380,1767201049033,-151.0,0.00037356,31]
[400217381,1767201049042,-299.90264,0.00037356,31]
[400217382,1767201049052,-151.0,0.00037356,31]
[400217383,1767201049061,-151.0,0.00037356,31]
[400217384,1767201049071,-238.787696,0.00037356,31]
[400217385,1767201049080,-151.0,0.00037356,31]
[400217386,1767201049090,-151.0,0.00037356,31]
[400217387,1767201049099,-151.0,0.00037356,31]
[400217388,1767201049109,-151.0,0.00037356,31]
[400217389,1767201049119,-151.0,0.00037356,31]
[400217390,1767201049128,-151.0,0.00037356,31]
[400217391,1767201049138,-151.0,0.00037356,31]
[400217392,1767201049149,-151.0,0.00037356,31]
[400217393,1767201049159,-151.0,0.00037356,31]
[400217394,1767201049168,-151.0,0.00037356,31]
[400217395,1767201049178,-151.0,0.00037356,31]
[400217396,1767201049187,-173.182204,0.00037356,31]
[400217397,1767201049197,-151.0,0.00037356,31]
[400217398,1767201049207,-151.0,0.00037356,31]
[400217399,1767201049217,-151.0,0.00037356,31]
[400217400,1767201049230,-151.0,0.00037356,31]
[400217401,1767201049240,-230.327504,0.00037356,31]
[400217402,1767201049250,-151.0,0.00037356,31]
[400217403,1767201049259,-151.0,0.00037356,31]
[400217404,1767201049270,-169.428056,0.00037356,31]
[400217405,1767201049279,-1794990.2460623,0.00037357,20]
[400217406,1767201049370,-500.0,0.00021916,2]
[400217407,1767201049379,-751.60846062,0.00037357,20]
[400217408,1767201049484,-500.0,0.00021916,2]
[400217409,1767201049494,-415.56306572,0.00021916,2]
[400217410,1767201049517,-287.93613636,0.00021916,2]
[400217411,1767201049527,-12.06386364,0.00021916,2]
[400217412,1767201050073,-400.0,0.00021916,2]
[400217413,1767201050085,-291.43533844,0.00021916,2]
[400217414,1767201050095,-10.56466156,0.00021916,2]
[400217422,1767201103820,160.926,0.00011353,2]
[400217570,1767201934138,-693.3115783,0.00010959,2]
[400217571,1767201934160,-306.99578248,0.00010981,2]
[400217572,1767201934181,-2374.17713002,0.00011004,2]
[400217573,1767201963690,5000.0,0.00010954,2]
[400217605,1767202009421,5000.0,0.00010954,2]
[400217607,1767202025085,-2742.04332618,0.00011004,2]
[400217608,1767202025106,-575.0,0.00011004,2]
[400217609,1767202025126,-211.232,0.00011353,2]
[400217610,1767202025147,-161.83602163,0.000115,2]
[400217611,1767202025168,-1200.0,0.00011581,2]
[400217612,1767202025190,-300.0,0.00011581,2]
[400217613,1767202025211,-500.0,0.00011582,2]
[400217614,1767202025233,-286.45730389,0.00011582,2]
[400217616,1767202025255,-170.40427404,0.00011582,2]
[400217618,1767202025277,-341.21233096,0.00011582,2]
[400217619,1767202025299,-442.26024046,0.00011582,2]
[400217620,1767202025320,-10023.09904256,0.00011583,2]
[400217621,1767202035157,-1672.54934202,0.00011583,2]
[400217622,1767202044204,-200.0,0.00011103,2]
[400217623,1767202044226,-200.0,0.00011203,3]
[400217624,1767202044248,-355.1666,0.00011584,2]
[400217625,1767202046090,-334.26261804,0.00011584,2]
[400217626,1767202046116,-689.42921804,0.00011584,2]
[400217627,1767202046139,-689.42921804,0.00011584,2]
[400217628,1767202046164,-689.42921804,0.00011584,2]
[400217629,1767202046187,-432.04453776,0.00011584,2]
[400217643,1767202169069,-241.52387991,0.00011483,2]
[400217644,1767202169092,-657.53160394,0.00011483,2]
[400217645,1767202169112,-500.0,0.00011483,2]
[400217646,1767202169132,-500.0,0.00011483,2]
[400217647,1767202169153,-657.53160394,0.00011483,2]
[400217648,1767202169173,-283.31829768,0.00011483,2]
[400217649,1767202169194,-657.53160394,0.00011483,2]
[400217650,1767202169217,-657.53160394,0.00011483,2]
[400217651,1767202169238,-657.53160394,0.00011483,2]
[400217652,1767202169259,-657.53160394,0.00011483,2]
[400217653,1767202169278,-657.53160394,0.00011483,2]
[400217654,1767202169299,-657.53160394,0.00011483,2]
[400217655,1767202169320,-657.53160394,0.00011483,2]
[400217656,1767202169341,-657.53160394,0.00011483,2]
[400217657,1767202169509,-657.53160394,0.00011483,2]
[400217658,1767202169535,-657.53160394,0.00011483,2]
[400217659,1767202169557,-657.53160394,0.00011483,2]
[400217660,1767202169580,-657.53160394,0.00011483,2]
[400217661,1767202169602,-657.53160394,0.00011483,2]
[400217662,1767202169625,-657.53160394,0.00011483,2]
[400217663,1767202169646,-657.53160394,0.00011483,2]
[400217664,1767202169667,-657.53160394,0.00011483,2]
[400217665,1767202169688,-657.53160394,0.00011483,2]
[400217666,1767202169709,-657.53160394,0.00011483,2]
[400217667,1767202169729,-657.53160394,0.00011483,2]
[400217668,1767202169751,-657.53160394,0.00011483,2]
[400217669,1767202169771,-657.53160394,0.00011483,2]
[400217670,1767202169792,-657.53160394,0.00011483,2]
[400217671,1767202169812,-723.28476432,0.00011483,2]
[400217672,1767202169832,-723.28476432,0.00011483,2]
[400217673,1767202169853,-723.28476432,0.00011483,2]
[400217674,1767202169874,-723.28476432,0.00011483,2]
[400217675,1767202169894,-723.28476432,0.00011483,2]
[400217676,1767202169915,-723.28476432,0.00011483,2]
[400217677,1767202169939,-84195.49434193,0.00011484,2]
[400217689,1767202232086,-459619.3035,0.00011484,2]
[400217690,1767202232098,-512.35140376,0.00011484,2]
[400217814,1767202238123,-455672.85075431,0.00011484,2]
[400217816,1767202238132,-300.85586683,0.00011484,2]
[400217817,1767202238142,-582.0,0.00011484,2]
[400217818,1767202238152,-151.0,0.000116,2]
[400217819,1767202238161,-232.35,0.00013206,2]
[400217820,1767202238171,-500.0,0.00013273,2]
[400217821,1767202238180,-500.0,0.00013273,2]
[400217822,1767202238190,-500.0,0.00013273,2]
[400217823,1767202238200,-355.00992286,0.00013484,2]
[400217824,1767202238209,-805.345898,0.00013699,2]
[400217825,1767202238218,-500.0,0.00013699,2]
[400217826,1767202238227,-500.0,0.00013699,2]
[400217827,1767202238236,-500.0,0.00013699,2]
[400217828,1767202238245,-404.49258692,0.00013699,2]
[400217829,1767202238254,-298.50297753,0.00014247,2]
[400217830,1767202238263,-1000.0,0.00014247,2]
[400217832,1767202238272,-464.71,0.00014407,2]
[400217834,1767202238282,-1500.0,0.00014795,2]
[400217835,1767202238291,-100000.0,0.00014882,2]
[400217836,1767202238300,-250.0,0.00015174,2]
[400217837,1767202238310,-658.06355379,0.00015263,2]
[400217838,1767202238320,-2000.0,0.00015342,2]
[400217839,1767202238330,-409.16397889,0.00015484,2]
[400217840,1767202238339,-697.06,0.00015607,2]
[400217841,1767202238349,-2500.0,0.0001589,2]
[400217842,1767202238359,-381.95392079,0.00016438,2]
[400217843,1767202238368,-3000.0,0.00016438,2]
[400217844,1767202238378,-929.42,0.00016808,2]
[400217845,1767202238387,-3500.0,0.00016986,2]
[400217846,1767202238397,-463.31803492,0.00017484,2]
[400217847,1767202238408,-4000.0,0.00017534,2]
[400217848,1767202238417,-15587.91656176,0.000178,3]
[400217849,1767202238427,-1161.77,0.00018008,2]
[400217850,1767202238436,-2000.0,0.00018082,2]
[400217851,1767202238446,-453.33223932,0.000189,2]
[400217852,1767202238455,-463.10576097,0.00019178,2]
[400217853,1767202238465,-1394.12,0.00019209,2]
[400217854,1767202238475,-517.47209095,0.00019484,2]
[400217855,1767202238484,-658.06355379,0.0001957,2]
[400217856,1767202238493,-165289.0,0.0002,2]